bitfinex-derivatives/quotes_BTCF0:USTF0_20220103
["timestamp","ask_amount","ask_price","bid_price","bid_amount"]
[1641237216700,0.368,46540.0,46539.0,0.5946468]
[1641237217298,0.367,46540.0,46534.0,0.14033567]
[1641237217499,0.18,46536.0,46534.0,0.14033567]
[1641237217699,0.001,46535.0,46534.0,0.14033567]
[1641237218102,0.07912,46535.0,46534.0,0.14033567]
[1641237218700,0.26512,46535.0,46534.0,0.14033567]
[1641237219701,0.26412,46535.0,46534.0,0.14033567]
[1641237219902,0.07912,46535.0,46534.0,0.14033567]
[1641237220305,0.07812,46535.0,46534.0,0.14033567]
[1641237220706,0.26412,46535.0,46534.0,0.14033567]
[1641237222005,0.07812,46535.0,46534.0,0.14033567]
[1641237222206,0.001,46535.0,46534.0,0.14033567]
[1641237222607,0.187,46535.0,46534.0,0.14033567]
[1641237223209,0.367,46535.0,46534.0,0.14033567]
[1641237223607,0.187,46535.0,46534.0,0.14033567]
[1641237224008,0.001,46535.0,46534.0,0.14033567]
[1641237224610,0.187,46535.0,46534.0,0.14033567]
[1641237225413,0.186,46535.0,46534.0,0.14033567]
[1641237226110,0.84839479,46536.0,46534.0,0.14033567]
[1641237226613,0.189,46536.0,46534.0,0.14033567]
[1641237228014,0.98873046,46540.0,46534.0,0.14033567]
[1641237228613,1.17773046,46540.0,46534.0,0.14033567]
[1641237230024,0.98873046,46540.0,46534.0,0.14033567]
[1641237230721,1.03739479,46540.0,46534.0,0.14033567]
[1641237231939,0.189,46540.0,46534.0,0.14033567]
[1641237232126,0.84839479,46541.0,46534.0,0.14033567]
[1641237232527,0.84839479,46541.0,46538.0,0.18]
[1641237232726,0.62472926,46543.0,46540.0,0.02148491]
[1641237232920,0.62472926,46543.0,46542.0,0.18]
[1641237233119,0.62472926,46543.0,46542.0,0.50492646]
[1641237233319,0.62472926,46543.0,46542.0,0.50749046]
[1641237233728,0.62472926,46543.0,46542.0,0.66930773]
[1641237234529,0.18,46558.0,46542.0,0.66930773]
[1641237234734,0.18,46558.0,46546.0,0.18]
[1641237234924,0.18,46558.0,46542.0,0.35881727]
[1641237235924,0.18,46558.0,46542.0,0.16181727]
[1641237236732,0.46367134,46557.0,46546.0,0.59443566]
[1641237237427,0.18,46553.0,46546.0,0.59443566]
[1641237237727,0.48515672,46557.0,46546.0,0.59443566]
[1641237237926,0.18,46553.0,46546.0,0.59443566]
[1641237238527,0.30215672,46557.0,46545.0,0.59443566]
[1641237238727,0.362,46553.0,46546.0,0.185]
[1641237238927,0.182,46553.0,46546.0,0.185]
[1641237239929,0.18,46556.0,46545.0,0.59443566]
[1641237240128,0.28067134,46557.0,46545.0,0.59443566]
[1641237240328,0.18,46556.0,46545.0,0.59443566]
[1641237240727,0.18,46556.0,46545.0,0.77943566]
[1641237240929,0.18,46556.0,46546.0,0.97080417]
[1641237241130,0.18,46556.0,46546.0,1.56523983]
[1641237241729,0.18,46556.0,46546.0,0.59443566]
[1641237242434,0.28067134,46557.0,46546.0,0.59443566]
[1641237242632,0.172,46556.0,46546.0,0.78043566]
[1641237243033,0.352,46556.0,46546.0,0.78043566]
[1641237243932,0.352,46556.0,46547.0,1.56522853]
[1641237244537,0.18,46556.0,46547.0,1.56522853]
[1641237244735,0.183,46556.0,46547.0,1.74922853]
[1641237244935,0.363,46556.0,46547.0,1.74922853]
[1641237245133,0.363,46556.0,46547.0,0.77843566]
[1641237245335,0.18,46555.0,46547.0,0.77843566]
[1641237245736,0.18,46555.0,46547.0,0.184]
[1641237245935,0.28067134,46557.0,46546.0,0.59443566]
[1641237246135,0.18,46555.0,46546.0,0.59443566]
[1641237246737,0.183,46555.0,46546.0,0.77943566]
[1641237246951,0.363,46555.0,46546.0,0.77943566]
[1641237247758,0.183,46555.0,46546.0,0.77943566]
[1641237248158,0.28067134,46557.0,46546.0,0.59443566]
[1641237248451,0.46067134,46557.0,46546.0,0.59443566]
[1641237248651,0.18,46555.0,46546.0,0.77943566]
[1641237249051,0.06,46555.0,46547.0,0.320107]
[1641237249251,0.18,46555.0,46546.0,0.77943566]
[1641237250757,0.363,46555.0,46546.0,0.77943566]
[1641237251757,0.183,46555.0,46546.0,0.77943566]
[1641237251957,0.18,46555.0,46546.0,0.59443566]
[1641237252357,0.28067134,46557.0,46546.0,0.59443566]
[1641237252659,0.183,46555.0,46546.0,0.77943566]
[1641237254159,0.34067134,46557.0,46546.0,0.59443566]
[1641237254358,0.46067134,46557.0,46546.0,0.59443566]
[1641237254559,0.28067134,46557.0,46546.0,0.59443566]
[1641237254861,0.64367134,46557.0,46546.0,0.77943566]
[1641237255060,0.46367134,46557.0,46546.0,0.77943566]
[1641237255460,0.18,46553.0,46546.0,0.77943566]
[1641237255861,0.14033567,46551.0,46546.0,0.77943566]
[1641237256062,0.18,46549.0,46546.0,0.59443566]
[1641237256261,0.001,46547.0,46546.0,0.59443566]
[1641237256662,0.009794,46548.0,46534.0,0.1618235]
[1641237256861,0.18,46545.0,46534.0,0.1618235]
[1641237257061,0.18,46545.0,46544.0,0.59392132]
[1641237257261,0.181,46545.0,46544.0,0.59392132]
[1641237257461,0.182,46545.0,46544.0,0.59392132]
[1641237258062,0.32233567,46545.0,46534.0,1.60317009]
[1641237258264,0.32033567,46545.0,46534.0,1.60317009]
[1641237258462,0.32033567,46545.0,46535.0,0.97097968]
[1641237258761,0.50133567,46545.0,46535.0,0.97097968]
[1641237259363,1.21374417,46536.0,46535.0,0.97097968]
[1641237260364,1.27963417,46536.0,46535.0,0.97097968]
[1641237260766,1.44463417,46536.0,46535.0,1.15797968]
[1641237262166,1.27963417,46536.0,46535.0,0.97097968]
[1641237262767,1.45863417,46536.0,46535.0,1.11597968]
[1641237263369,0.24589,46536.0,46535.0,0.145]
[1641237263569,0.24489,46536.0,46535.0,0.145]
[1641237263768,0.24589,46536.0,46535.0,0.145]
[1641237263969,0.38622567,46536.0,46535.0,0.145]
[1641237264170,0.20822567,46536.0,46525.0,0.02149209]
[1641237264369,0.20622567,46536.0,46525.0,0.02149209]
[1641237264769,0.38822567,46536.0,46526.0,0.186]
[1641237265172,0.02149709,46531.0,46526.0,0.186]
[1641237265379,0.02150047,46527.0,46515.0,0.02]
[1641237265571,0.18,46516.0,46504.0,1.66863893]
[1641237265771,0.25191,46516.0,46504.0,1.66863893]
[1641237265974,0.009794,46515.0,46513.0,1.43407593]
[1641237266172,0.181,46514.0,46513.0,1.43407593]
[1641237266372,0.18,46514.0,46513.0,1.43407593]
[1641237266872,0.365,46514.0,46513.0,1.43407593]
[1641237267073,0.38650497,46514.0,46513.0,1.43407593]
[1641237267471,0.38850497,46514.0,46513.0,1.43407593]
[1641237267672,0.38750497,46514.0,46513.0,1.43407593]
[1641237267871,0.20850497,46514.0,46502.0,3.7415]
[1641237268071,0.14033567,46511.0,46503.0,0.97149409]
[1641237268271,0.14033567,46511.0,46503.0,2.004561]
[1641237268272,0.18,46510.0,46503.0,2.004561]
[1641237268672,0.14033567,46511.0,46503.0,2.004561]
[1641237268971,0.189,46510.0,46503.0,2.004561]
[1641237269371,2.91260594,46509.0,46503.0,2.004561]
[1641237270177,0.85013303,46505.0,46503.0,1.03306691]
[1641237270377,0.85013303,46505.0,46502.0,0.97149409]
[1641237270773,0.85013303,46505.0,46503.0,0.18]
[1641237270976,1.04413303,46505.0,46504.0,0.02150126]
[1641237271379,0.194,46505.0,46504.0,0.34475426]
[1641237271775,0.194,46505.0,46504.0,0.35689683]
[1641237271975,0.194,46505.0,46504.0,0.03364383]
[1641237272176,0.194,46505.0,46504.0,0.01214257]
[1641237272377,1.21447575,46506.0,46504.0,0.01214257]
[1641237272776,1.21447575,46506.0,46505.0,0.02150049]
[1641237272977,0.177,46506.0,46505.0,0.02150049]
[1641237273177,0.177,46506.0,46504.0,0.98363666]
[1641237273377,0.177,46506.0,46504.0,0.97149409]
[1641237273579,0.177,46506.0,46505.0,0.02150049]
[1641237273777,0.177,46506.0,46505.0,0.99299458]
[1641237274179,1.21447575,46511.0,46505.0,0.99299458]
[1641237275080,1.40147575,46511.0,46505.0,0.99299458]
[1641237275980,1.40147575,46511.0,46506.0,0.97149409]
[1641237276182,1.40147575,46511.0,46507.0,0.14033567]
[1641237276380,1.21447575,46511.0,46507.0,0.14033567]
[1641237276980,1.40347575,46511.0,46508.0,0.97149409]
[1641237277181,1.21447575,46510.0,46508.0,0.97149409]
[1641237278184,0.189,46511.0,46508.0,0.97149409]
[1641237278387,0.009794,46515.0,46509.0,0.97149409]
[1641237278585,0.18,46514.0,46509.0,0.97149409]
[1641237278786,0.001,46510.0,46509.0,0.97149409]
[1641237278985,0.18,46514.0,46509.0,0.97149409]
[1641237279186,0.001,46510.0,46507.0,0.14033567]
[1641237279386,0.18,46514.0,46507.0,0.14033567]
[1641237280088,0.02150579,46513.0,46507.0,0.14033567]
[1641237280289,1.21444718,46508.0,46507.0,0.14033567]
[1641237280903,0.188,46508.0,46507.0,0.14033567]
[1641237281308,1.40093,46508.0,46497.0,1.44168105]
[1641237281504,0.18,46506.0,46497.0,1.44168105]
[1641237282105,0.14033567,46500.0,46497.0,1.44168105]
[1641237282805,0.14033567,46500.0,46492.0,1.46318834]
[1641237283005,1.54299066,46500.0,46492.0,1.46318834]
[1641237283605,1.54299066,46500.0,46492.0,1.44168105]
[1641237284107,1.54299066,46500.0,46490.0,1.17340258]
[1641237284108,1.21465499,46498.0,46491.0,1.44168105]
[1641237284907,1.27527499,46498.0,46490.0,1.58201672]
[1641237285106,0.009794,46497.0,46490.0,1.44168105]
[1641237285705,0.001,46491.0,46490.0,1.44168105]
[1641237286306,0.009794,46497.0,46487.0,1.03306691]
[1641237286307,0.14033567,46494.0,46487.0,1.03306691]
[1641237286512,1.21465499,46493.0,46486.0,1.44168105]
[1641237287107,1.40565499,46493.0,46486.0,1.44168105]
[1641237287408,0.001,46487.0,46486.0,1.44168105]
[1641237287706,1.40565499,46493.0,46486.0,1.44168105]
[1641237287909,0.001,46487.0,46486.0,1.44168105]
[1641237288306,0.85037007,46491.0,46486.0,1.44168105]
[1641237288508,0.001,46487.0,46486.0,1.44168105]
[1641237288707,0.85037007,46491.0,46486.0,1.44168105]
[1641237288908,0.85037007,46490.0,46485.0,0.14033567]
[1641237289110,0.191,46487.0,46485.0,0.14033567]
[1641237289908,0.191,46487.0,46486.0,1.44168105]
[1641237290210,0.191,46487.0,46486.0,1.51220105]
[1641237290408,0.85037007,46491.0,46486.0,1.69220105]
[1641237290609,0.85037007,46491.0,46486.0,1.51220105]
[1641237291009,1.03837007,46491.0,46486.0,1.51220105]
[1641237291415,0.188,46491.0,46486.0,1.51220105]
[1641237292012,0.188,46491.0,46487.0,1.44168105]
[1641237292214,0.85037007,46492.0,46487.0,1.44168105]
[1641237293013,1.03937007,46492.0,46487.0,1.44168105]
[1641237293612,0.85037007,46491.0,46486.0,1.44168105]
[1641237295011,1.04437007,46491.0,46486.0,1.44168105]
[1641237295213,1.04437007,46491.0,46488.0,0.18]
[1641237295514,1.04437007,46491.0,46490.0,0.02150785]
[1641237295812,1.21465499,46493.0,46488.0,0.26523]
[1641237296014,1.21465499,46493.0,46492.0,0.0215069]
[1641237296414,1.21465499,46497.0,46492.0,0.0215069]
[1641237297115,1.21465499,46497.0,46492.0,0.2165069]
[1641237297516,1.21465499,46499.0,46493.0,0.96024224]
[1641237298515,1.21465499,46499.0,46493.0,0.98174914]
[1641237298717,1.21465499,46499.0,46494.0,0.96024224]
[1641237299418,1.21465499,46499.0,46495.0,0.96024224]
[1641237300517,1.21465499,46498.0,46496.0,0.96024224]
[1641237301116,1.21465499,46498.0,46496.0,1.15524224]
[1641237301319,1.21465499,46499.0,46496.0,0.195]
[1641237302018,1.21465499,46499.0,46497.0,0.96024224]
[1641237302216,1.21465499,46498.0,46497.0,0.96024224]
[1641237302417,1.21385499,46498.0,46497.0,0.96024224]
[1641237303018,1.22364899,46499.0,46497.0,1.15624224]
[1641237303817,1.40364899,46499.0,46497.0,1.15624224]
[1641237304017,0.001,46498.0,46497.0,0.196]
[1641237304417,0.001,46498.0,46490.0,1.44168105]
[1641237304819,0.009794,46499.0,46490.0,1.44168105]
[1641237305019,0.009794,46499.0,46497.0,0.193]
[1641237305518,0.001,46498.0,46497.0,0.193]
[1641237305724,0.001,46498.0,46489.0,1.44168105]
[1641237305921,0.18,46492.0,46489.0,1.44168105]
[1641237306121,0.06395,46492.0,46489.0,1.44168105]
[1641237306324,0.14133567,46490.0,46489.0,1.44168105]
[1641237306522,0.14033567,46490.0,46488.0,1.44168105]
[1641237306922,0.002,46489.0,46488.0,1.44168105]
[1641237307126,0.002,46489.0,46488.0,1.60568105]
[1641237307524,0.002,46489.0,46488.0,0.164]
[1641237308926,0.001,46489.0,46488.0,0.164]
[1641237309126,0.193,46489.0,46488.0,0.76801159]
[1641237309526,0.192,46489.0,46488.0,0.76801159]
[1641237309729,0.193,46489.0,46488.0,0.76801159]
[1641237309930,0.192,46489.0,46488.0,0.76801159]
[1641237310128,0.193,46489.0,46488.0,0.76801159]
[1641237310328,0.001,46489.0,46488.0,0.60401159]
[1641237311029,0.19,46489.0,46488.0,0.60401159]
[1641237312334,0.002,46489.0,46488.0,0.60401159]
[1641237312731,0.001,46489.0,46488.0,0.60401159]
[1641237313133,0.194,46489.0,46488.0,0.60401159]
[1641237313733,0.194,46489.0,46483.0,0.06243]
[1641237313932,0.193,46489.0,46483.0,0.06243]
[1641237314535,0.193,46489.0,46488.0,0.18]
[1641237315138,0.174,46489.0,46488.0,0.366]
[1641237316434,0.84857914,46499.0,46488.0,0.18]
[1641237317034,0.84857914,46499.0,46488.0,0.367]
[1641237317538,0.14033567,46500.0,46492.0,0.18]
[1641237319135,0.14033567,46500.0,46492.0,0.369]
[1641237320437,0.14033567,46500.0,46492.0,0.18]
[1641237320837,0.32033567,46500.0,46491.0,0.60364476]
[1641237321038,0.32033567,46500.0,46492.0,0.195]
[1641237321438,0.14033567,46500.0,46492.0,0.195]
[1641237321738,0.32033567,46500.0,46492.0,0.195]
[1641237321952,0.14033567,46500.0,46492.0,0.195]
[1641237322139,0.32033567,46500.0,46492.0,0.195]
[1641237322339,0.32033567,46500.0,46490.0,1.46367308]
[1641237322743,0.32033567,46500.0,46490.0,0.60364476]
[1641237323141,0.32033567,46500.0,46490.0,0.79264476]
[1641237323547,0.18,46492.0,46490.0,0.79264476]
[1641237323747,0.18,46492.0,46490.0,1.65204332]
[1641237324048,0.21465567,46496.0,46490.0,1.65204332]
[1641237324448,0.21465567,46496.0,46490.0,0.79264476]
[1641237324649,0.001,46491.0,46490.0,0.60364476]
[1641237324849,0.001,46491.0,46486.0,0.14033567]
[1641237325049,0.001,46487.0,46486.0,0.14033567]
[1641237325449,0.001,46487.0,46485.0,0.60364476]
[1641237325649,0.353,46491.0,46485.0,0.60364476]
[1641237326250,0.18,46487.0,46485.0,0.60364476]
[1641237326453,0.010794,46486.0,46484.0,0.60364476]
[1641237326650,0.23412967,46486.0,46484.0,0.60364476]
[1641237327050,0.42112967,46486.0,46484.0,0.60364476]
[1641237327252,0.02251921,46485.0,46475.0,0.91666033]
[1641237327455,0.18,46477.0,46475.0,0.91666033]
[1641237327651,0.010794,46476.0,46475.0,0.91666033]
[1641237327855,0.083434,46476.0,46475.0,0.91666033]
[1641237328553,0.36410534,46476.0,46475.0,0.91666033]
[1641237328755,0.36510534,46476.0,46475.0,0.91666033]
[1641237328956,0.36510534,46476.0,46465.0,1.46168105]
[1641237329156,0.18,46473.0,46465.0,1.46168105]
[1641237329763,0.18,46473.0,46466.0,0.01215187]
[1641237329965,0.001,46468.0,46466.0,0.01215187]
[1641237330167,0.001,46467.0,46466.0,0.01215187]
[1641237331165,0.183,46467.0,46466.0,0.01215187]
[1641237332367,0.001,46467.0,46466.0,0.01215187]
[1641237333070,0.184,46467.0,46466.0,0.01215187]
[1641237334368,0.001,46467.0,46466.0,0.01215187]
[1641237334970,0.14033567,46469.0,46466.0,0.01215187]
[1641237335170,0.185,46467.0,46466.0,0.01215187]
[1641237336670,0.14033567,46469.0,46466.0,0.01215187]
[1641237337071,0.32933567,46469.0,46466.0,0.01215187]
[1641237338371,0.14033567,46469.0,46466.0,0.01215187]
[1641237339172,0.32933567,46469.0,46466.0,0.01215187]
[1641237340574,0.14033567,46469.0,46466.0,0.01215187]
[1641237341175,0.33133567,46469.0,46466.0,0.01215187]
[1641237342577,0.14033567,46469.0,46466.0,0.01215187]
[1641237343181,0.32833567,46469.0,46467.0,0.85228187]
[1641237343778,0.32833567,46469.0,46468.0,0.01215187]
[1641237344583,0.14033567,46469.0,46468.0,0.01215187]
[1641237344980,0.14033567,46469.0,46468.0,0.86443374]
[1641237345182,0.33333567,46469.0,46468.0,0.86443374]
[1641237346484,0.14033567,46469.0,46468.0,0.86443374]
[1641237347183,0.33333567,46469.0,46468.0,0.86443374]
[1641237348386,0.14033567,46469.0,46468.0,0.86443374]
[1641237349188,0.33533567,46469.0,46468.0,0.86443374]
[1641237350590,0.14033567,46469.0,46468.0,0.86443374]
[1641237351189,0.33733567,46469.0,46468.0,0.86443374]
[1641237351393,0.18,46482.0,46468.0,0.96692143]
[1641237351394,0.02152017,46482.0,46468.0,0.96692143]
[1641237351594,0.02152017,46482.0,46471.0,0.18]
[1641237351791,0.02152017,46482.0,46474.0,0.18]
[1641237352089,0.02152017,46482.0,46472.0,0.01215187]
[1641237352291,0.02152017,46482.0,46476.0,0.18]
[1641237353093,0.16185584,46482.0,46476.0,0.18]
[1641237353293,0.16185584,46482.0,46476.0,0.19]
[1641237353496,0.16185584,46482.0,46477.0,0.01215033]
[1641237354795,0.16185584,46482.0,46477.0,0.61728891]
[1641237354996,0.16185584,46482.0,46477.0,0.60513858]
[1641237355297,0.16185584,46482.0,46477.0,0.79613858]
[1641237355496,0.34185584,46482.0,46477.0,0.79613858]
[1641237355710,0.18,46480.0,46477.0,0.79613858]
[1641237355912,0.24427,46480.0,46477.0,0.79613858]
[1641237356314,0.001,46478.0,46477.0,0.79613858]
[1641237356514,0.001,46478.0,46477.0,0.60513858]
[1641237356913,0.24427,46480.0,46471.0,0.60513858]
[1641237357113,0.14033567,46473.0,46471.0,0.60513858]
[1641237358114,0.14033567,46473.0,46469.0,0.60513858]
[1641237358815,0.14033567,46473.0,46470.0,0.01215228]
[1641237359418,0.14033567,46473.0,46469.0,0.79813858]
[1641237359614,0.32033567,46473.0,46470.0,0.60513858]
[1641237360217,0.14033567,46473.0,46470.0,0.60513858]
[1641237360615,0.14033567,46473.0,46467.0,0.80735931]
[1641237360814,0.98891481,46473.0,46470.0,0.80735931]
[1641237362417,0.98891481,46473.0,46468.0,1.44168105]
[1641237362915,0.98891481,46473.0,46469.0,0.01215217]
[1641237363115,0.14033567,46473.0,46470.0,1.44168105]
[1641237364515,0.14033567,46473.0,46471.0,0.01215204]
[1641237365216,0.14033567,46473.0,46471.0,0.20115204]
[1641237365617,0.14033567,46473.0,46472.0,0.80735931]
[1641237365816,0.14133567,46473.0,46472.0,0.80735931]
[1641237367217,0.14133567,46473.0,46472.0,0.99435931]
[1641237367817,0.14133567,46473.0,46472.0,0.187]
[1641237368717,0.14133567,46473.0,46470.0,1.44168105]
[1641237368922,0.20483567,46473.0,46470.0,1.44168105]
[1641237369319,0.20483567,46473.0,46472.0,0.80735931]
[1641237369621,0.20583567,46473.0,46472.0,0.80735931]
[1641237370421,0.20583567,46473.0,46471.0,0.80735931]
[1641237370620,0.20483567,46473.0,46471.0,0.80735931]
[1641237371020,0.20483567,46473.0,46470.0,1.44168105]
[1641237371221,0.20483567,46473.0,46471.0,0.187]
[1641237372621,0.20483567,46473.0,46470.0,1.44168105]
[1641237373023,0.84857914,46475.0,46472.0,0.80735931]
[1641237373322,0.84857914,46475.0,46474.0,0.18]
[1641237373721,0.84857914,46475.0,46474.0,0.19215148]
[1641237373922,0.84857914,46476.0,46474.0,0.19215148]
[1641237374621,0.84857914,46476.0,46475.0,0.01215148]
[1641237375222,0.84857914,46476.0,46475.0,0.20315148]
[1641237375425,0.84857914,46480.0,46475.0,2.45219184]
[1641237375823,0.84857914,46480.0,46476.0,0.01215148]
[1641237376423,0.84857914,46480.0,46478.0,0.18]
[1641237376622,1.35259158,46482.0,46478.0,0.18]
[1641237376623,0.84857914,46481.0,46478.0,0.18]
[1641237377225,0.84857914,46481.0,46478.0,0.376]
[1641237377623,0.84857914,46481.0,46478.0,0.196]
[1641237377824,0.98891481,46482.0,46479.0,0.80735931]
[1641237379224,0.98891481,46482.0,46479.0,1.00435931]
[1641237379425,0.14033567,46482.0,46479.0,1.02587253]
[1641237380126,0.14033567,46482.0,46481.0,0.18]
[1641237381129,0.14033567,46482.0,46481.0,0.80735931]
[1641237381331,0.14033567,46482.0,46481.0,1.00335931]
[1641237382130,0.84857914,46484.0,46481.0,1.20487126]
[1641237382330,1.21225591,46486.0,46481.0,0.39751195]
[1641237382532,1.21225591,46486.0,46481.0,0.52220795]
[1641237383131,1.21225591,46486.0,46482.0,2.26118957]
[1641237383331,1.21225591,46489.0,46485.0,0.14033567]
[1641237384732,1.21225591,46490.0,46486.0,0.80735931]
[1641237385332,1.35225591,46490.0,46486.0,0.19]
[1641237386234,0.001,46487.0,46486.0,0.19]
[1641237386442,0.06795,46487.0,46486.0,0.19]
[1641237386634,0.24795,46487.0,46485.0,0.14033567]
[1641237386833,0.24695,46487.0,46485.0,0.14033567]
[1641237387234,0.18995,46487.0,46485.0,0.32133567]
[1641237387739,0.18,46486.0,46485.0,0.32133567]
[1641237388737,0.18995,46487.0,46485.0,0.32133567]
[1641237388940,0.18,46486.0,46485.0,0.32133567]
[1641237389337,0.25095,46487.0,46485.0,0.50233567]
[1641237390241,0.18,46486.0,46485.0,0.50233567]
[1641237390439,0.25095,46487.0,46485.0,0.50233567]
[1641237390640,0.06695,46487.0,46485.0,0.14033567]
[1641237391041,0.14033567,46492.0,46485.0,0.14033567]
[1641237391240,1.21503875,46486.0,46485.0,0.33233567]
[1641237392540,0.85047958,46486.0,46485.0,0.14033567]
[1641237393342,0.85047958,46486.0,46485.0,0.33633567]
[1641237393542,0.85047958,46487.0,46485.0,0.33633567]
[1641237394042,1.21503875,46489.0,46485.0,0.33633567]
[1641237394643,1.21503875,46488.0,46485.0,0.14033567]
[1641237395243,1.21503875,46488.0,46485.0,0.32933567]
[1641237395944,1.21503875,46487.0,46485.0,0.32933567]
[1641237396645,1.21503875,46487.0,46485.0,0.14033567]
[1641237396844,1.21503875,46487.0,46486.0,0.18]
[1641237397048,1e-08,46487.0,46486.0,0.2553]
[1641237397246,1e-08,46495.0,46486.0,0.27680878]
[1641237397447,1.69231533,46512.0,46494.0,0.16184058]
[1641237397647,1.61431533,46512.0,46508.0,0.18]
[1641237397948,1.61431533,46512.0,46508.0,0.28303995]
[1641237398348,0.02149995,46525.0,46508.0,0.28303995]
[1641237399148,0.4672985,46523.0,46511.0,0.18]
[1641237399348,0.4672985,46523.0,46512.0,0.07206725]
[1641237399548,0.4672985,46523.0,46515.0,0.14033567]
[1641237401248,0.4672985,46523.0,46515.0,0.32233567]
[1641237401948,0.4672985,46523.0,46517.0,0.60236694]
[1641237402149,0.02149995,46525.0,46517.0,0.60236694]
[1641237402550,0.02149106,46545.0,46524.0,0.20149182]
[1641237402750,1.9965,46548.0,46539.0,0.02148563]
[1641237402954,1.6999897,46541.0,46539.0,0.08009563]
[1641237403452,0.12896922,46541.0,46540.0,0.3365244]
[1641237403650,0.12896922,46541.0,46540.0,0.5175244]
[1641237403852,0.4672985,46549.0,46540.0,0.5175244]
[1641237404052,0.4672985,46549.0,46548.0,0.18]
[1641237404251,0.4672985,46549.0,46548.0,0.20148051]
[1641237405252,0.18,46557.0,46548.0,0.02148051]
[1641237405555,0.14033567,46554.0,46548.0,0.21548051]
[1641237405757,0.14033567,46554.0,46548.0,0.194]
[1641237406758,0.14033567,46554.0,46543.0,0.02148363]
[1641237406959,0.14033567,46554.0,46545.0,0.60236694]
[1641237409363,0.14033567,46554.0,46545.0,0.78136694]
[1641237410566,0.18,46551.0,46545.0,0.78136694]
[1641237410765,0.26458,46551.0,46545.0,0.60236694]
[1641237410966,0.08458,46551.0,46545.0,0.60236694]
[1641237411466,0.08458,46551.0,46545.0,0.78336694]
[1641237411867,0.18,46547.0,46545.0,0.78336694]
[1641237412670,0.18,46547.0,46545.0,0.60236694]
[1641237412871,0.08458,46551.0,46545.0,0.60236694]
[1641237413374,0.08458,46551.0,46545.0,0.177]
[1641237414474,0.18,46547.0,46545.0,0.177]
[1641237414674,0.18,46547.0,46542.0,0.60236694]
[1641237414875,0.08458,46551.0,46543.0,0.60236694]
[1641237415476,0.08458,46551.0,46543.0,0.181]
[1641237415878,0.28067134,46554.0,46543.0,0.181]
[1641237416779,0.28067134,46554.0,46542.0,0.60236694]
[1641237416979,0.33995134,46554.0,46542.0,0.60236694]
[1641237417478,0.33995134,46554.0,46542.0,0.78336694]
[1641237417678,0.33995134,46554.0,46542.0,0.80485108]
[1641237418078,0.33995134,46554.0,46543.0,0.97084691]
[1641237418278,0.33995134,46554.0,46543.0,1.57321385]
[1641237419278,0.33995134,46554.0,46545.0,0.60236694]
[1641237420177,0.18,46552.0,46545.0,0.60236694]
[1641237420578,0.33995134,46554.0,46545.0,0.60236694]
[1641237421378,0.33995134,46554.0,46545.0,0.78036694]
[1641237422680,0.33995134,46554.0,46546.0,0.97079532]
[1641237422882,0.18,46549.0,46546.0,1.57316226]
[1641237423284,0.18,46549.0,46546.0,0.60236694]
[1641237423482,0.18,46552.0,46546.0,0.183]
[1641237423982,0.18,46547.0,46546.0,0.183]
[1641237424184,0.33995134,46554.0,46546.0,0.183]
[1641237424385,0.28067134,46554.0,46546.0,0.183]
[1641237424583,0.18,46552.0,46546.0,0.183]
[1641237424785,0.28067134,46554.0,46544.0,0.60236694]
[1641237425385,0.28067134,46554.0,46544.0,0.78236694]
[1641237426386,0.28067134,46554.0,46545.0,0.97081616]
[1641237426587,0.28067134,46554.0,46545.0,1.5731831]
[1641237427089,0.28067134,46554.0,46545.0,0.60236694]
[1641237427488,0.28067134,46554.0,46545.0,0.78036694]
[1641237428690,0.28067134,46554.0,46545.0,0.60236694]
[1641237428892,0.28067134,46554.0,46546.0,1.57309668]
[1641237429493,0.28067134,46554.0,46546.0,1.74909668]
[1641237429992,0.28067134,46554.0,46547.0,0.97072974]
[1641237430192,0.28067134,46554.0,46547.0,1.57309668]
[1641237430193,0.14033567,46554.0,46547.0,1.57309668]
[1641237431495,0.14033567,46554.0,46547.0,1.74609668]
[1641237431896,0.14033567,46554.0,46547.0,1.88643235]
[1641237432094,0.14033567,46554.0,46547.0,0.91570261]
[1641237432695,0.14033567,46554.0,46547.0,0.74270261]
[1641237433295,0.14033567,46554.0,46547.0,0.14033567]
[1641237433494,0.14033567,46554.0,46547.0,0.31233567]
[1641237434795,0.14033567,46554.0,46547.0,0.14033567]
[1641237435196,0.14033567,46554.0,46547.0,0.74270261]
[1641237435397,0.14033567,46554.0,46547.0,0.91570261]
[1641237436697,0.14033567,46554.0,46547.0,0.74270261]
[1641237437398,0.14033567,46554.0,46547.0,0.91570261]
[1641237437900,0.14033567,46554.0,46547.0,0.31333567]
[1641237438799,0.14033567,46554.0,46547.0,0.14033567]
[1641237439497,0.14033567,46554.0,46547.0,0.32633567]
[1641237440000,0.14033567,46554.0,46547.0,0.92870261]
[1641237440602,0.14033567,46554.0,46548.0,0.60236694]
[1641237441400,0.14033567,46554.0,46548.0,0.78836694]
[1641237442703,0.0001,46560.0,46551.0,0.18]
[1641237442901,0.0001,46560.0,46553.0,0.02147892]
[1641237443502,0.0001,46560.0,46553.0,0.21247892]
[1641237443904,0.0001,46560.0,46559.0,0.14033567]
[1641237445601,0.0001,46560.0,46559.0,0.32833567]
[1641237446905,0.0001,46560.0,46559.0,0.14033567]
[1641237447510,0.0001,46560.0,46559.0,0.32433567]
[1641237448709,0.0001,46560.0,46559.0,0.14033567]
[1641237449707,0.8477704,46560.0,46559.0,0.32433567]
[1641237450309,0.0001,46560.0,46559.0,0.32433567]
[1641237450711,0.0001,46560.0,46559.0,0.14033567]
[1641237451514,0.84777222,46560.0,46559.0,0.32433567]
[1641237452716,0.84777222,46560.0,46559.0,0.14033567]
[1641237452914,0.93452222,46560.0,46559.0,0.14033567]
[1641237453521,0.08685,46560.0,46559.0,0.32433567]
[1641237454521,0.0001,46560.0,46559.0,0.32433567]
[1641237454922,0.0001,46560.0,46559.0,0.14033567]
[1641237455523,0.0001,46560.0,46559.0,0.32433567]
[1641237456823,0.0001,46560.0,46559.0,0.14033567]
[1641237456824,0.84777656,46560.0,46559.0,0.14033567]
[1641237457423,0.84777656,46560.0,46559.0,0.32433567]
[1641237458025,0.0001,46560.0,46559.0,0.32433567]
[1641237458926,0.0001,46560.0,46559.0,0.14033567]
[1641237459429,0.0001,46560.0,46559.0,0.33333567]